[Event "Festival Groningen-A 2024"]
[Site "Groningen"]
[Date "2024.12.27"]
[Round "6.25"]
[White "Khoo-Thwe, Louis"]
[Black "Ivanov, Dmytry"]
[Result "1/2-1/2"]
[ECO "B43"]
[WhiteElo "2124"]
[BlackElo "2072"]
[Annotator "RC"]
[PlyCount "77"]
[EventDate "2024.12.21"]
[EventType "swiss"]
[EventCountry "NED"]
[SourceTitle "playchess.com"]
[Source "ChessBase"]
[SourceQuality "1"]
[TimeControl "40/5400+30:1800+30"]

1. e4 {[%emt 0:00:03]} c5 {[%emt 0:00:06]} 2. Nf3 {[%emt 0:00:05]} e6 {[%emt 0:00:15]} 3. d4 {[%emt 0:00:14]} cxd4 {[%emt 0:00:07]} 4. Nxd4 {[%emt 0:00:06]} Nf6 {[%emt 0:00:12]} 5. Bd3 {[%emt 0:00:30]} a6 {[%emt 0:00:18]} 6. O-O {[%emt 0:00:41]} Qc7 {[%emt 0:00:26]} 7. Nc3 {[%emt 0:00:47]} h5 {[%emt 0:02:43]} 8. a4 {[%emt 0:04:44]} Ng4 {[%emt 0:08:13]} 9. g3 {[%emt 0:02:54]} Bc5 {[%emt 0:01:57]} 10. Nb3 {[%emt 0:01:27]} Be7 {[%emt 0:07:26]} 11. f4 {[%emt 0:08:13]} d6 {[%emt 0:06:49]} 12. Qf3 {[%emt 0:02:20]} Nc6 {[%emt 0:01:39]} 13. h3 {[%emt 0:02:40]} Nf6 {[%emt 0:00:29]} 14. Be3 {[%emt 0:03:08]} h4 {[%emt 0:19:33]} 15. g4 {[%emt 0:03:22]} Nd7 {[%emt 0:03:44]} 16. Qf2 {[%emt 0:05:43]} b6 {[%emt 0:03:26]} 17. Rae1 {[%emt 0:15:12]} Bb7 {[%emt 0:01:33]} 18. Nd4 {[%emt 0:07:32]} Nc5 {[%emt 0:06:51]} 19. Nxc6 {[%emt 0:02:05]} Bxc6 {[%emt 0:00:32]} 20. Bd4 {[%emt 0:03:37]} Bf6 {[%emt 0:14:08]} 21. e5 {[%emt 0:05:52]} dxe5 {[%emt 0:00:21]} 22. fxe5 {[%emt 0:02:38]} Bg5 {[%emt 0:00:37]} 23. Bxc5 {[%emt 0:01:15]} bxc5 {[%emt 0:00:12]} 24. Qxc5 {[%emt 0:00:49]} Be7 {[%emt 0:00:40]} 25. Qe3 {[%emt 0:01:51]} Qa5 {[%emt 0:02:36]} 26. Qf4 {[%emt 0:04:28]} O-O {[%emt 0:01:43]} 27. g5 {[%emt 0:03:41]} Qb4 {[%emt 0:03:24]} 28. Ne4 {[%emt 0:02:58]} Rad8 {[%emt 0:04:45]} 29. Qxh4 {[%emt 0:01:58]} Bc5+ {[%emt 0:02:03]} 30. Kh2 {[%emt 0:01:57]} Rxd3 {[%emt 0:00:20]} 31. cxd3 {[%emt 0:00:53]} Qxb2+ {[%emt 0:00:09]} 32. Kh1 {[%emt 0:02:19]} Qxe5 {[%emt 0:01:59]} 33. g6 {[%emt 0:03:45]} fxg6 {[%emt 0:00:20]} 34. Rxf8+ {[%emt 0:00:14]} Bxf8 {[%emt 0:00:07]} 35. Rf1 {[%emt 0:01:34]} g5 {[%emt 0:00:57]} 36. Qf2 {[%emt 0:01:19]} Bd6 {[%emt 0:03:23]} 37. Qf7+ {[%emt 0:00:35]} Kh8 {[%emt 0:00:23]} 38. Qh5+ {[%emt 0:00:10]} Kg8 {[%emt 0:00:07]} 39. Qf7+ {[%emt 0:00:03]} 1/2-1/2

[Event "Festival Groningen-A 2024"]
[Site "Groningen"]
[Date "2024.12.27"]
[Round "6.26"]
[White "Kanis, Sierk"]
[Black "Sharma, Dinesh K."]
[Result "1/2-1/2"]
[ECO "D23"]
[WhiteElo "2116"]
[BlackElo "2200"]
[Annotator "RC"]
[PlyCount "57"]
[EventDate "2024.12.21"]
[EventType "swiss"]
[EventCountry "NED"]
[SourceTitle "playchess.com"]
[Source "ChessBase"]
[SourceQuality "1"]
[TimeControl "40/5400+30:1800+30"]

1. d4 {[%emt 0:00:04]} d5 {[%emt 0:00:06]} 2. c4 {[%emt 0:00:04]} c6 {[%emt 0:00:18]} 3. Nf3 {[%emt 0:00:07]} Nf6 {[%emt 0:00:07]} 4. Qc2 {[%emt 0:00:04]} dxc4 {[%emt 0:01:14]} 5. Qxc4 {[%emt 0:00:06]} Bf5 {[%emt 0:00:07]} 6. g3 {[%emt 0:00:09]} e6 {[%emt 0:00:07]} 7. Bg2 {[%emt 0:00:03]} Be7 {[%emt 0:00:11]} 8. O-O {[%emt 0:00:07]} Nbd7 {[%emt 0:00:07]} 9. e3 {[%emt 0:00:12]} O-O {[%emt 0:00:10]} 10. Qe2 {[%emt 0:00:05]} c5 {[%emt 0:04:09]} 11. Rd1 {[%emt 0:02:42]} Qb6 {[%emt 0:00:48]} 12. Nc3 {[%emt 0:00:44]} cxd4 {[%emt 0:01:01]} 13. Nxd4 {[%emt 0:00:25]} Bg4 {[%emt 0:00:23]} 14. f3 {[%emt 0:03:25]} Bh5 {[%emt 0:00:33]} 15. Kh1 {[%emt 0:00:13]} Bb4 {[%emt 0:04:46]} 16. Bd2 {[%emt 0:01:59]} Rfd8 {[%emt 0:03:18]} 17. a3 {[%emt 0:01:53]} Bxc3 {[%emt 0:04:08]} 18. Bxc3 {[%emt 0:00:10]} Rac8 {[%emt 0:00:39]} 19. Rac1 {[%emt 0:02:54]} a6 {[%emt 0:02:27]} 20. Qe1 {[%emt 0:04:08]} Qa7 {[%emt 0:01:34]} 21. Ba5 {[%emt 0:03:59]} Re8 {[%emt 0:00:51]} 22. g4 {[%emt 0:21:21]} Bg6 {[%emt 0:00:19]} 23. g5 {[%emt 0:03:20]} Nd5 {[%emt 0:01:44]} 24. Rxc8 {[%emt 0:06:19]} Rxc8 {[%emt 0:00:04]} 25. e4 {[%emt 0:00:15]} Nf4 {[%emt 0:04:29]} 26. Nf5 {[%emt 0:11:38]} exf5 {[%emt 0:05:00]} 27. Rxd7 {[%emt 0:00:38]} Nxg2 {[%emt 0:01:33]} 28. Qd2 {[%emt 0:17:17]} Qc5 {[%emt 0:27:31]} 29. Rd8+ {[%emt 0:13:54]} 1/2-1/2

[Event "Festival Groningen-A 2024"]
[Site "Groningen"]
[Date "2024.12.27"]
[Round "6.27"]
[White "Hummel, Paul"]
[Black "Mohammed, Dilshad"]
[Result "0-1"]
[ECO "D36"]
[WhiteElo "2160"]
[BlackElo "2078"]
[Annotator "RC"]
[PlyCount "66"]
[EventDate "2024.12.21"]
[EventType "swiss"]
[EventCountry "NED"]
[SourceTitle "playchess.com"]
[Source "ChessBase"]
[SourceQuality "1"]
[TimeControl "40/5400+30:1800+30"]

1. d4 {[%emt 0:00:08]} d5 {[%emt 0:00:24]} 2. c4 {[%emt 0:00:28]} e6 {[%emt 0:00:18]} 3. Nc3 {[%emt 0:00:07]} Nf6 {[%emt 0:00:10]} 4. cxd5 {[%emt 0:01:22]} exd5 {[%emt 0:00:15]} 5. Bg5 {[%emt 0:00:06]} Be7 {[%emt 0:00:39]} 6. e3 {[%emt 0:00:08]} h6 {[%emt 0:01:28]} 7. Bh4 {[%emt 0:00:21]} c6 {[%emt 0:00:05]} 8. Bd3 {[%emt 0:00:16]} O-O {[%emt 0:00:31]} 9. Nf3 {[%emt 0:00:23]} Nbd7 {[%emt 0:00:52]} 10. Qc2 {[%emt 0:01:05]} Re8 {[%emt 0:00:06]} 11. O-O {[%emt 0:00:31]} Ne4 {[%emt 0:00:46]} 12. Bxe7 {[%emt 0:04:37]} Qxe7 {[%emt 0:00:28]} 13. Rab1 {[%emt 0:05:02]} Nf8 {[%emt 0:05:18]} 14. b4 {[%emt 0:07:22]} Ng6 {[%emt 0:01:34]} 15. b5 {[%emt 0:08:25]} Bg4 {[%emt 0:00:55]} 16. Nd2 {[%emt 0:07:29]} Nxd2 {[%emt 0:07:06]} 17. Qxd2 {[%emt 0:00:17]} Nh4 {[%emt 0:00:10]} 18. Kh1 {[%emt 0:16:49]} Nf3 {[%emt 0:01:30]} 19. Qe2 {[%emt 0:02:50]} Nxh2 {[%emt 0:01:54]} 20. f3 {[%emt 0:02:44]} Nxf1 {[%emt 0:02:35]} 21. Rxf1 {[%emt 0:00:17]} Qh4+ {[%emt 0:01:15]} 22. Kg1 {[%emt 0:00:05]} Bh5 {[%emt 0:01:22]} 23. a4 {[%emt 0:00:53]} Re7 {[%emt 0:02:32]} 24. e4 {[%emt 0:02:49]} Rae8 {[%emt 0:00:19]} 25. Qe3 {[%emt 0:03:16]} Rd8 {[%emt 0:08:57]} 26. e5 {[%emt 0:03:22]} c5 {[%emt 0:00:59]} 27. f4 {[%emt 0:00:04]} b6 {[%emt 0:05:57]} 28. Bc2 {[%emt 0:03:01]} Rc7 {[%emt 0:01:17]} 29. Bb3 {[%emt 0:04:32]} cxd4 {[%emt 0:04:48]} 30. Qxd4 {[%emt 0:00:01]} Rdc8 {[%emt 0:05:09]} 31. Nxd5 {[%emt 0:00:01]} Rc1 {[%emt 0:00:03]} 32. Qd2 {[%emt 0:00:21]} Rxf1+ {[%emt 0:01:41]} 33. Kxf1 {[%emt 0:01:44]} Rc1+ {[%emt 0:02:01]} 0-1

[Event "Festival Groningen-A 2024"]
[Site "Groningen"]
[Date "2024.12.27"]
[Round "6.28"]
[White "Schilstra, Laurens"]
[Black "Boeren, Jurriaan"]
[Result "0-1"]
[ECO "C01"]
[WhiteElo "2150"]
[BlackElo "2147"]
[Annotator "RC"]
[PlyCount "112"]
[EventDate "2024.12.21"]
[EventType "swiss"]
[EventCountry "NED"]
[SourceTitle "playchess.com"]
[Source "ChessBase"]
[SourceQuality "1"]
[TimeControl "40/5400+30:1800+30"]

1. e4 {[%emt 0:00:07]} e6 {[%emt 0:00:04]} 2. d4 {[%emt 0:00:12]} d5 {[%emt 0:00:01]} 3. exd5 {[%emt 0:00:06]} exd5 {[%emt 0:00:05]} 4. c4 {[%emt 0:00:03]} Bb4+ {[%emt 0:00:18]} 5. Bd2 {[%emt 0:00:25]} Bxd2+ {[%emt 0:01:27]} 6. Nxd2 {[%emt 0:00:22]} Nf6 {[%emt 0:03:35]} 7. Qa4+ {[%emt 0:03:51]} Nc6 {[%emt 0:09:51]} 8. cxd5 {[%emt 0:01:48]} Qe7+ {[%emt 0:03:54]} 9. Be2 {[%emt 0:04:27]} Nxd5 {[%emt 0:02:25]} 10. O-O-O {[%emt 0:00:47]} O-O {[%emt 0:03:36]} 11. Nf1 {[%emt 0:06:52]} Qg5+ {[%emt 0:13:58]} 12. Rd2 {[%emt 0:02:42]} Qxg2 {[%emt 0:11:09]} 13. Ng3 {[%emt 0:00:20]} Qxf2 {[%emt 0:01:28]} 14. Nf3 {[%emt 0:01:33]} Qe3 {[%emt 0:08:04]} 15. Bd1 {[%emt 0:09:47]} Bg4 {[%emt 0:04:21]} 16. Re1 {[%emt 0:01:21]} Qh6 {[%emt 0:01:35]} 17. Rg1 {[%emt 0:12:05]} Rfe8 {[%emt 0:06:10]} 18. h3 {[%emt 0:09:55]} Nb6 {[%emt 0:06:23]} 19. Qb3 {[%emt 0:01:13]} Be6 {[%emt 0:01:46]} 20. Qb5 {[%emt 0:02:51]} Rad8 {[%emt 0:03:05]} 21. Qh5 {[%emt 0:01:22]} Qxh5 {[%emt 0:05:29]} 22. Nxh5 {[%emt 0:00:53]} Kh8 {[%emt 0:02:11]} 23. Nxg7 {[%emt 0:00:17]} Rg8 {[%emt 0:00:58]} 24. Nxe6 {[%emt 0:00:05]} fxe6 {[%emt 0:00:28]} 25. Ng5 {[%emt 0:01:20]} Rdf8 {[%emt 0:02:12]} 26. Rdg2 {[%emt 0:01:26]} Nd8 {[%emt 0:00:30]} 27. h4 {[%emt 0:04:16]} Nd5 {[%emt 0:02:17]} 28. Rg3 {[%emt 0:00:29]} h6 {[%emt 0:02:22]} 29. Ne4 {[%emt 0:00:43]} Rxg3 {[%emt 0:00:49]} 30. Rxg3 {[%emt 0:00:04]} Rf4 {[%emt 0:01:59]} 31. Nc5 {[%emt 0:03:00]} Rxd4 {[%emt 0:00:59]} 32. Bb3 {[%emt 0:00:02]} Rxh4 {[%emt 0:01:19]} 33. Nd7 {[%emt 0:00:03]} Rf4 {[%emt 0:00:47]} 34. Ne5 {[%emt 0:01:38]} Ne7 {[%emt 0:00:35]} 35. Rd3 {[%emt 0:02:00]} Nf7 {[%emt 0:00:58]} 36. Rd7 {[%emt 0:00:15]} Nxe5 {[%emt 0:00:21]} 37. Rxe7 {[%emt 0:00:03]} Nd3+ {[%emt 0:00:43]} 38. Kd2 {[%emt 0:00:34]} Nc5 {[%emt 0:00:05]} 39. Bc2 {[%emt 0:00:06]} Rd4+ {[%emt 0:00:25]} 40. Ke3 {[%emt 0:00:21]} Rd7 {[%emt 0:00:20]} 41. Re8+ {[%emt 0:30:24]} Kg7 {[%emt 0:30:09]} 42. b4 {[%emt 0:00:26]} Na6 {[%emt 0:00:00]} 43. a3 {[%emt 0:00:00]} c5 {[%emt 0:00:00]} 44. Rxe6 {[%emt 0:00:00]} cxb4 {[%emt 0:00:00]} 45. Rg6+ {[%emt 0:00:00]} Kf8 {[%emt 0:00:00]} 46. Bf5 {[%emt 0:00:00]} Re7+ {[%emt 0:00:00]} 47. Kd4 {[%emt 0:00:00]} bxa3 {[%emt 0:00:00]} 48. Be6 {[%emt 0:00:00]} Rc7 {[%emt 0:00:00]} 49. Ke5 {[%emt 0:00:00]} Rg7 {[%emt 0:00:00]} 50. Rxh6 {[%emt 0:00:00]} Ke7 {[%emt 0:00:00]} 51. Rh3 {[%emt 0:00:00]} Nc7 {[%emt 0:02:01]} 52. Bf5 {[%emt 0:00:00]} Nb5 {[%emt 0:00:32]} 53. Rd3 {[%emt 0:00:00]} a2 {[%emt 0:01:14]} 54. Rd7+ {[%emt 0:00:00]} Ke8 {[%emt 0:00:32]} 55. Rd1 {[%emt 0:00:00]} Nc3 {[%emt 0:00:24]} 56. Rh1 {[%emt 0:00:00]} Nb1 {[%emt 0:00:41]} 0-1

[Event "Festival Groningen-A 2024"]
[Site "Groningen"]
[Date "2024.12.27"]
[Round "6.29"]
[White "Spit, Vincent"]
[Black "Groenewoud, Joel"]
[Result "1-0"]
[ECO "B12"]
[WhiteElo "2113"]
[BlackElo "2058"]
[Annotator "RC"]
[PlyCount "53"]
[EventDate "2024.12.21"]
[EventType "swiss"]
[EventCountry "NED"]
[SourceTitle "playchess.com"]
[Source "ChessBase"]
[SourceQuality "1"]
[TimeControl "40/5400+30:1800+30"]

1. e4 {[%emt 0:00:04]} c6 {[%emt 0:00:02]} 2. d4 {[%emt 0:00:08]} d5 {[%emt 0:00:05]} 3. e5 {[%emt 0:00:04]} c5 {[%emt 0:00:03]} 4. Nf3 {[%emt 0:00:07]} cxd4 {[%emt 0:00:05]} 5. Qxd4 {[%emt 0:00:08]} Nc6 {[%emt 0:00:08]} 6. Qf4 {[%emt 0:00:18]} e6 {[%emt 0:00:09]} 7. Bd3 {[%emt 0:00:28]} Nb4 {[%emt 0:00:06]} 8. Bd2 {[%emt 0:00:46]} Nxd3+ {[%emt 0:00:06]} 9. cxd3 {[%emt 0:00:07]} Ne7 {[%emt 0:00:30]} 10. Nc3 {[%emt 0:00:36]} Nf5 {[%emt 0:04:24]} 11. Ne2 {[%emt 0:10:52]} Be7 {[%emt 0:14:31]} 12. g4 {[%emt 0:10:34]} Nh6 {[%emt 0:02:28]} 13. Qg3 {[%emt 0:04:48]} Bd7 {[%emt 0:01:05]} 14. Nf4 {[%emt 0:05:39]} Bb5 {[%emt 0:06:12]} 15. Nh5 {[%emt 0:01:48]} Rg8 {[%emt 0:06:25]} 16. Nd4 {[%emt 0:02:53]} Ba6 {[%emt 0:02:54]} 17. g5 {[%emt 0:03:28]} Nf5 {[%emt 0:01:43]} 18. Nxf5 {[%emt 0:00:07]} exf5 {[%emt 0:00:06]} 19. O-O {[%emt 0:02:18]} d4 {[%emt 0:06:46]} 20. Rfe1 {[%emt 0:03:12]} Kf8 {[%emt 0:02:32]} 21. e6 {[%emt 0:02:04]} f6 {[%emt 0:04:12]} 22. gxf6 {[%emt 0:03:20]} Bxf6 {[%emt 0:00:27]} 23. Nxf6 {[%emt 0:06:03]} Qxf6 {[%emt 0:00:08]} 24. Bg5 {[%emt 0:02:03]} f4 {[%emt 0:00:27]} 25. Bxf4 {[%emt 0:00:40]} Qg6 {[%emt 0:05:11]} 26. Bg5 {[%emt 0:01:24]} Ke8 {[%emt 0:00:08]} 27. h4 {[%emt 0:01:38]} 1-0

[Event "Festival Groningen-A 2024"]
[Site "Groningen"]
[Date "2024.12.27"]
[Round "6.30"]
[White "Duson, Robin"]
[Black "Van Helvoort, Rob"]
[Result "1-0"]
[ECO "E52"]
[WhiteElo "2159"]
[BlackElo "2135"]
[Annotator "RC"]
[PlyCount "127"]
[EventDate "2024.12.21"]
[EventType "swiss"]
[EventCountry "NED"]
[SourceTitle "playchess.com"]
[Source "ChessBase"]
[SourceQuality "1"]
[TimeControl "40/5400+30:1800+30"]

1. d4 {[%emt 0:00:06]} Nf6 {[%emt 0:00:06]} 2. c4 {[%emt 0:00:13]} e6 {[%emt 0:00:09]} 3. Nc3 {[%emt 0:00:23]} Bb4 {[%emt 0:00:25]} 4. e3 {[%emt 0:01:52]} O-O {[%emt 0:00:32]} 5. Bd2 {[%emt 0:00:51]} d5 {[%emt 0:00:56]} 6. Nf3 {[%emt 0:00:41]} b6 {[%emt 0:00:40]} 7. cxd5 {[%emt 0:00:30]} exd5 {[%emt 0:00:24]} 8. Rc1 {[%emt 0:01:01]} Bb7 {[%emt 0:02:24]} 9. Bd3 {[%emt 0:01:24]} Nbd7 {[%emt 0:04:10]} 10. O-O {[%emt 0:02:59]} a6 {[%emt 0:03:38]} 11. Ne5 {[%emt 0:02:21]} Bxc3 {[%emt 0:11:54]} 12. Bxc3 {[%emt 0:02:48]} Ne4 {[%emt 0:20:47]} 13. Nxd7 {[%emt 0:03:19]} Qxd7 {[%emt 0:00:39]} 14. Be1 {[%emt 0:03:43]} Rac8 {[%emt 0:01:34]} 15. f3 {[%emt 0:03:26]} Nd6 {[%emt 0:01:13]} 16. Bf2 {[%emt 0:05:54]} Rfe8 {[%emt 0:02:08]} 17. Re1 {[%emt 0:02:29]} g6 {[%emt 0:02:41]} 18. b3 {[%emt 0:05:21]} f5 {[%emt 0:03:56]} 19. Bg3 {[%emt 0:04:10]} c5 {[%emt 0:02:25]} 20. Be5 {[%emt 0:04:01]} Nf7 {[%emt 0:01:28]} 21. f4 {[%emt 0:00:39]} Nxe5 {[%emt 0:04:54]} 22. fxe5 {[%emt 0:00:24]} Qe7 {[%emt 0:03:02]} 23. Qf3 {[%emt 0:02:55]} b5 {[%emt 0:03:27]} 24. Qf4 {[%emt 0:06:04]} c4 {[%emt 0:01:50]} 25. Be2 {[%emt 0:02:22]} cxb3 {[%emt 0:02:02]} 26. axb3 {[%emt 0:00:07]} Rxc1 {[%emt 0:03:27]} 27. Rxc1 {[%emt 0:00:17]} Rc8 {[%emt 0:00:15]} 28. Rxc8+ {[%emt 0:01:55]} Bxc8 {[%emt 0:00:02]} 29. Bf3 {[%emt 0:04:17]} Be6 {[%emt 0:00:23]} 30. h4 {[%emt 0:01:57]} a5 {[%emt 0:01:23]} 31. Bd1 {[%emt 0:02:36]} Kg7 {[%emt 0:09:34]} 32. h5 {[%emt 0:01:58]} gxh5 {[%emt 0:02:24]} 33. Qf1 {[%emt 0:02:35]} Qg5 {[%emt 0:00:49]} 34. Qd3 {[%emt 0:02:59]} Qg3 {[%emt 0:03:23]} 35. Kf1 {[%emt 0:01:46]} f4 {[%emt 0:03:08]} 36. Bc2 {[%emt 0:02:31]} fxe3 {[%emt 0:01:55]} 37. Qxh7+ {[%emt 0:00:14]} Kf8 {[%emt 0:00:04]} 38. Qh8+ {[%emt 0:01:16]} Ke7 {[%emt 0:02:39]} 39. Qf6+ {[%emt 0:00:13]} Kd7 {[%emt 0:00:05]} 40. Bd3 {[%emt 0:00:38]} e2+ {[%emt 0:01:55]} 41. Bxe2 {[%emt 0:30:30]} Qxb3 {[%emt 0:30:07]} 42. Qg7+ {[%emt 0:01:33]} Kc6 {[%emt 0:00:00]} 43. Qe7 {[%emt 0:00:00]} Qb1+ {[%emt 0:00:00]} 44. Kf2 {[%emt 0:00:00]} Qf5+ {[%emt 0:00:00]} 45. Kg1 {[%emt 0:00:00]} Bd7 {[%emt 0:00:00]} 46. Bf3 {[%emt 0:00:00]} Be6 {[%emt 0:00:00]} 47. Qc5+ {[%emt 0:00:00]} Kd7 {[%emt 0:00:00]} 48. Qxb5+ {[%emt 0:00:00]} Ke7 {[%emt 0:00:00]} 49. Qxa5 {[%emt 0:00:00]} Qg5 {[%emt 0:00:00]} 50. Qc7+ {[%emt 0:00:00]} Kf8 {[%emt 0:00:00]} 51. Qc3 {[%emt 0:00:00]} h4 {[%emt 0:00:00]} 52. Bd1 {[%emt 0:00:00]} Kg7 {[%emt 0:00:00]} 53. Qf3 {[%emt 0:00:00]} Bf5 {[%emt 0:00:00]} 54. Kh2 {[%emt 0:00:00]} Kf8 {[%emt 0:00:00]} 55. Bb3 {[%emt 0:00:41]} Ke7 {[%emt 0:00:47]} 56. Bxd5 {[%emt 0:00:45]} Bg6 {[%emt 0:04:41]} 57. Qa3+ {[%emt 0:01:49]} Ke8 {[%emt 0:04:35]} 58. Qa8+ {[%emt 0:00:41]} Ke7 {[%emt 0:00:00]} 59. Qa3+ {[%emt 0:02:56]} Ke8 {[%emt 0:00:00]} 60. Bc6+ {[%emt 0:00:26]} Kf7 {[%emt 0:00:00]} 61. Qf3+ {[%emt 0:01:07]} Bf5 {[%emt 0:00:00]} 62. d5 {[%emt 0:01:51]} Kg8 {[%emt 0:00:00]} 63. Be8 {[%emt 0:05:09]} Kh7 {[%emt 0:01:21]} 64. Qh5+ {[%emt 0:00:20]} 1-0